fUSD/lending_fUSD_20250617
["ID","MTS","AMOUNT","RATE_DAILY","PERIOD"]
[366226574,1750137041583,-490.0,0.00016399,2]
[366226575,1750137041594,-523.5135595,0.00016399,2]
[366226576,1750137041605,-490.0,0.00016399,2]
[366226577,1750137041617,-341.43520442,0.00016399,2]
[366226581,1750137043325,-148.56479558,0.00016399,2]
[366226582,1750137043335,-490.0,0.00016399,2]
[366226583,1750137043345,-490.0,0.00016399,2]
[366226584,1750137043355,-490.0,0.00016399,2]
[366226585,1750137043365,-490.0,0.00016399,2]
[366226586,1750137043376,-490.0,0.00016399,2]
[366226587,1750137043385,-2617.17081297,0.000164,2]
[366226588,1750137043397,-1145.32300851,0.000164,2]
[366226589,1750137043437,-656.95126641,0.000164,2]
[366226590,1750137043493,-8709.25978211,0.000164,2]
[366226591,1750137043503,-206.4332652,0.000164,2]
[366226592,1750137043512,-150.0,0.0001642,2]
[366226593,1750137043522,-206.4332652,0.00016463,2]
[366226594,1750137043531,-1448.86516696,0.0001649,2]
[366226595,1750137043544,-188.13483304,0.0001649,2]
[366226596,1750137043553,-857.0,0.000165,2]
[366226597,1750137043563,-165.81,0.000165,3]
[366226598,1750137043573,-150.0,0.00016503,2]
[366226599,1750137043582,-150.0,0.00016519,2]
[366226600,1750137043592,-206.4332652,0.00016525,2]
[366226601,1750137043602,-150.0,0.00016527,2]
[366226602,1750137043612,-150.0,0.00016529,2]
[366226603,1750137043622,-150.0,0.00016536,2]
[366226604,1750137043631,-150.0,0.0001655,2]
[366226605,1750137043641,-490.0,0.00016563,2]
[366226606,1750137043651,-490.0,0.00016563,2]
[366226607,1750137043661,-699.75,0.00016563,2]
[366226608,1750137043672,-490.0,0.00016563,2]
[366226609,1750137043682,-600.68,0.00016563,2]
[366226610,1750137043692,-490.0,0.00016563,2]
[366226611,1750137043702,-490.0,0.00016563,2]
[366226612,1750137043712,-680.87,0.00016563,2]
[366226613,1750137043723,-490.0,0.00016563,2]
[366226614,1750137043734,-490.0,0.00016563,2]
[366226615,1750137043743,-185.38868242,0.00016563,2]
[366226616,1750137043760,-417.20650517,0.00016563,2]
[366226618,1750137043771,-63.38190829,0.00016563,2]
[366226620,1750137044071,-426.61809171,0.00016563,2]
[366226621,1750137044081,-551.18,0.00016563,2]
[366226622,1750137044091,-570.90390458,0.00016563,2]
[366226623,1750137044101,-490.0,0.00016563,2]
[366226624,1750137044111,-490.0,0.00016563,2]
[366226625,1750137044122,-284.23210608,0.00016563,2]
[366226626,1750137044135,-490.0,0.00016563,2]
[366226627,1750137044145,-167.12,0.00016563,2]
[366226628,1750137044155,-296.59480358,0.00016563,2]
[366226629,1750137044168,-193.40519642,0.00016563,2]
[366226630,1750137044177,-490.0,0.00016563,2]
[366226631,1750137044188,-167.95067505,0.00016568,2]
[366226632,1750137044197,-250.76697974,0.00016568,2]
[366226633,1750137044207,-154.02835638,0.0001657,2]
[366226634,1750137044218,-150.0,0.00016581,2]
[366226635,1750137044228,-150.0,0.00016581,2]
[366226636,1750137044237,-150.0,0.00016587,2]
[366226637,1750137044247,-206.4332652,0.00016588,2]
[366226638,1750137044257,-150.0,0.00016588,2]
[366226639,1750137044267,-19.21851369,0.0001659,2]
[366226640,1750137046537,-130.78148631,0.0001659,2]
[366226641,1750137046548,-542.97962957,0.000166,2]
[366226642,1750137046593,-457.02037043,0.000166,2]
[366226643,1750137046603,-1000.0,0.000166,2]
[366226644,1750137046612,-1000.0,0.000166,2]
[366226645,1750137046622,-640.46468172,0.000166,2]
[366226723,1750137056322,414.57,0.00013699,2]
[366226724,1750137101423,200.0,0.00014605,2]
[366226725,1750137221596,202.0,0.00014605,2]
[366226726,1750137333861,1000.0,0.00015337,2]
[366226727,1750137500465,937.61,0.00015385,2]
[366226728,1750137504892,966.52,0.00015263,2]
[366226729,1750137511581,250.0,0.0001534,2]
[366226730,1750137581609,250.0,0.00015,2]
[366226731,1750137597981,23900.0,0.00015312,2]
[366226732,1750137699410,246.85,0.00015262,2]
[366226733,1750137732107,200.0,0.00014741,2]
[366226734,1750137732265,200.0,0.00015293,2]
[366226735,1750137785288,253.41,0.00015198,2]
[366226736,1750137878434,1949.5,0.00015186,2]
[366226737,1750137912461,150.0,0.00015288,2]
[366226738,1750137971812,200.0,0.00014741,2]
[366226739,1750137978222,200.0,0.00015201,2]
[366226740,1750137979053,666.0,0.00015193,2]
[366226741,1750138072150,1000.0,0.00024,120]
[366226742,1750138091784,201.0,0.00014845,2]
[366226743,1750138092028,201.0,0.0001541,2]
[366226746,1750138113692,165.34,0.00014804,2]
[366226747,1750138120353,5259.72308009,0.000151,2]
[366226748,1750138157181,393.84,0.00013699,2]
[366226777,1750138231491,-1442.60000002,0.00015573,2]
[366226779,1750138231505,-5029.40000001,0.00015573,2]
[366226781,1750138231517,-578.6680823,0.00015573,2]
[366226783,1750138231531,-485.44602349,0.00015573,2]
[366226785,1750138231541,-250.0,0.00015575,2]
[366226787,1750138231552,-1200.0,0.00015576,2]
[366226789,1750138231561,-300.0,0.00015578,2]
[366226792,1750138231571,-166.75050015,0.00015581,2]
[366226796,1750138231601,-133.24949985,0.00015581,2]
[366226798,1750138231612,-300.0,0.00015582,2]
[366226800,1750138231622,-368.32976118,0.00015583,2]
[366226802,1750138231635,-832.45139217,0.00015583,2]
[366226803,1750138231667,-5771.60718008,0.00015583,2]
[366226804,1750138231680,-311.88590251,0.00015583,2]
[366226805,1750138231691,-4008.60135854,0.00015583,2]
[366226806,1750138231703,-8329.96622916,0.00015583,2]
[366226807,1750138231715,-30628.49098881,0.00015583,2]
[366226808,1750138231727,-26064.32612962,0.00015583,2]
[366226809,1750138231737,-151.0,0.00015597,2]
[366226810,1750138231747,-151.0,0.00015597,2]
[366226811,1750138231757,-151.0,0.00015597,2]
[366226812,1750138231767,-170.8,0.00015602,2]
[366226813,1750138231777,-187.37,0.00015602,2]
[366226814,1750138231787,-170.8,0.00015606,2]
[366226815,1750138231798,-170.8,0.0001561,2]
[366226816,1750138231807,-319.21,0.00015613,2]
[366226817,1750138231818,-170.8,0.00015614,2]
[366226818,1750138231827,-170.8,0.00015619,2]
[366226819,1750138231837,-170.8,0.00015623,2]
[366226820,1750138231846,-170.8,0.00015627,2]
[366226821,1750138231857,-170.8,0.00015631,2]
[366226822,1750138231867,-170.8,0.00015635,2]
[366226823,1750138231877,-170.8,0.00015639,2]
[366226824,1750138231887,-170.8,0.00015643,2]
[366226825,1750138231897,-170.8,0.00015647,2]
[366226826,1750138231907,-170.8,0.00015651,2]
[366226827,1750138231917,-170.8,0.00015656,2]
[366226828,1750138231927,-170.8,0.0001566,2]
[366226830,1750138231937,-170.8,0.00015664,2]
[366226832,1750138231947,-170.8,0.00015668,2]
[366226834,1750138231957,-170.8,0.00015672,2]
[366226836,1750138231968,-170.8,0.00015676,2]
[366226838,1750138231977,-170.8,0.0001568,2]
[366226840,1750138231987,-171.0,0.00015939,2]
[366226841,1750138231997,-275.51942089,0.00015965,2]
[366226842,1750138232007,-201.0,0.00015974,3]
[366226843,1750138232017,-1707.92482497,0.00015994,2]
[366226844,1750138232027,-610.12820437,0.00016,2]
[366226845,1750138232037,-610.1282041,0.00016,2]
[366226846,1750138232047,-610.1282041,0.00016,2]
[366226847,1750138232056,-200.692747,0.00016,2]
[366226848,1750138232066,-610.1282041,0.00016003,2]
[366226849,1750138232077,-610.1282041,0.00016038,2]
[366226850,1750138232087,-158.27254659,0.00016041,2]
[366226851,1750138232100,-602.05793254,0.00016041,2]
[366226854,1750138232164,-606.54860783,0.00016041,2]
[366226856,1750138232176,-6865.69798352,0.00016041,2]
[366226858,1750138232186,-165.29,0.00016069,2]
[366226860,1750138232196,-610.1282041,0.00016072,2]
[366226862,1750138232206,-622.2350614,0.000161,2]
[366226864,1750138232217,-923.86963395,0.000161,2]
[366226866,1750138232226,-168.28827294,0.00016106,2]
[366226868,1750138232236,-60497.86946235,0.00016106,2]
[366226870,1750138232248,-121657.72388343,0.00016106,2]
[366226873,1750138232260,-8971.46852804,0.00016106,2]
[366226875,1750138232276,-1124.911587,0.00016106,2]
[366226944,1750138235355,500.0,0.00015068,2]
[366226946,1750138237573,-10446.26009057,0.00016106,2]
[366226947,1750138237629,-5149.743675,0.00016106,2]
[366226971,1750138239596,-173.41260872,0.00016041,2]
[366226972,1750138239607,-2217.61011086,0.00016106,2]
[366226973,1750138239620,-1096.2,0.00016106,2]
[366226974,1750138239634,-1836.88489895,0.00016106,2]
[366226975,1750138239652,-1792.60513274,0.00016106,2]
[366226976,1750138239768,-470.8852232,0.00016106,2]
[366226977,1750138239882,-7526.32598763,0.00016106,2]
[366226978,1750138239893,-151.0,0.00016107,2]
[366226979,1750138239904,-1957.856,0.00016107,2]
[366226980,1750138239914,-207.4,0.00016107,2]
[366226981,1750138239925,-610.1282041,0.00016107,2]
[366226982,1750138239935,-397.3,0.00016131,2]
[366226983,1750138239947,-8232.57707045,0.00016136,2]
[366226984,1750138239957,-490.0,0.0001614,2]
[366226985,1750138239968,-490.0,0.0001614,2]
[366226986,1750138239977,-490.0,0.0001614,2]
[366226987,1750138239988,-490.0,0.0001614,2]
[366226988,1750138239999,-1829.51,0.0001614,2]
[366226989,1750138240009,-490.0,0.0001614,2]
[366226990,1750138240020,-500.0,0.0001614,2]
[366226991,1750138240030,-980.31,0.0001614,2]
[366226992,1750138240041,-423.3,0.0001614,2]
[366226993,1750138240051,-490.0,0.0001614,2]
[366226995,1750138240061,-323.07587284,0.0001614,2]
[366226996,1750138240071,-490.0,0.0001614,2]
[366226997,1750138240082,-490.0,0.0001614,2]
[366226998,1750138240093,-490.0,0.0001614,2]
[366226999,1750138240103,-490.0,0.0001614,2]
[366227000,1750138240113,-490.0,0.0001614,2]
[366227001,1750138240123,-535.27,0.0001614,2]
[366227002,1750138240134,-490.0,0.0001614,2]
[366227003,1750138240145,-490.0,0.0001614,2]
[366227004,1750138240155,-490.0,0.0001614,2]
[366227005,1750138240165,-490.0,0.0001614,2]
[366227006,1750138240175,-490.0,0.0001614,2]
[366227007,1750138240185,-490.0,0.0001614,2]
[366227008,1750138240195,-490.0,0.0001614,2]
[366227009,1750138240205,-490.0,0.0001614,2]
[366227010,1750138240215,-490.0,0.0001614,2]
[366227011,1750138240226,-490.0,0.0001614,2]
[366227012,1750138240237,-490.0,0.0001614,2]
[366227013,1750138240246,-490.0,0.0001614,2]
[366227014,1750138240257,-490.0,0.0001614,2]
[366227015,1750138240267,-569.45,0.0001614,2]
[366227016,1750138240277,-490.0,0.0001614,2]
[366227017,1750138240289,-490.0,0.0001614,2]
[366227018,1750138240299,-490.0,0.0001614,2]
[366227019,1750138240309,-490.0,0.0001614,2]
[366227020,1750138240320,-490.0,0.0001614,2]
[366227021,1750138240330,-490.0,0.0001614,2]
[366227022,1750138240341,-490.0,0.0001614,2]
[366227023,1750138240351,-434.86294743,0.0001614,2]
[366227024,1750138240361,-610.1282041,0.00016141,2]
[366227025,1750138240371,-1422.61013063,0.00016162,2]
[366227026,1750138240382,-500.0,0.00016164,2]
[366227027,1750138240392,-610.1282041,0.00016176,2]
[366227028,1750138240402,-923.86963395,0.00016189,2]
[366227029,1750138240413,-1127.94,0.000162,2]
[366227030,1750138240423,-467.1,0.000162,2]
[366227031,1750138240433,-797.51,0.000162,2]
[366227032,1750138240444,-797.51,0.000162,2]
[366227033,1750138240455,-461.62,0.000162,2]
[366227034,1750138240465,-797.51,0.000162,2]
[366227035,1750138240475,-461.62,0.000162,2]
[366227036,1750138240485,-461.62,0.000162,2]
[366227037,1750138240495,-1594.62,0.000162,2]
[366227038,1750138240504,-656.32,0.000162,2]
[366227039,1750138240515,-610.1282041,0.0001621,2]
[366227040,1750138240526,-8232.57707045,0.00016232,2]
[366227041,1750138240537,-610.1282041,0.00016245,2]
[366227042,1750138240547,-923.86963395,0.00016278,2]
[366227043,1750138240556,-610.1282041,0.00016279,2]
[366227044,1750138240567,-1006.0,0.000163,2]
[366227045,1750138240577,-922.48,0.000163,2]
[366227046,1750138240587,-490.0,0.00016304,2]
[366227047,1750138240597,-490.0,0.00016304,2]
[366227048,1750138240607,-325.25665595,0.00016304,2]
[366227049,1750138240618,-490.0,0.00016304,2]
[366227050,1750138240627,-490.0,0.00016305,2]
[366227051,1750138240638,-490.0,0.00016305,2]
[366227052,1750138240647,-1829.51,0.00016305,2]
[366227053,1750138240658,-490.0,0.00016305,2]
[366227054,1750138240668,-980.31,0.00016305,2]
[366227055,1750138240678,-490.0,0.00016305,2]
[366227056,1750138240688,-490.0,0.00016305,2]
[366227057,1750138240698,-189.95,0.00016305,2]
[366227058,1750138240708,-490.0,0.00016305,2]
[366227059,1750138240718,-490.0,0.00016305,2]
[366227060,1750138240727,-610.1282041,0.00016314,2]
[366227061,1750138240737,-8232.57707045,0.00016327,2]
[366227062,1750138240747,-610.1282041,0.00016348,2]
[366227063,1750138240757,-923.86963395,0.00016367,2]
[366227064,1750138240767,-530.71085777,0.00016368,2]
[366227065,1750138240776,-200.0,0.00016368,2]
[366227066,1750138240786,-2637.96252156,0.00016368,2]
[366227067,1750138240796,-200.0,0.0001637,2]
[366227068,1750138240808,-417.52860388,0.0001637,2]
[366227069,1750138240817,-200.0,0.00016376,2]
[366227070,1750138240827,-200.0,0.00016378,2]
[366227071,1750138240839,-610.1282041,0.00016383,2]
[366227072,1750138240849,-485.99786868,0.00016383,2]
[366227073,1750138240859,-234.58992814,0.00016387,2]
[366227074,1750138240869,-200.0,0.00016398,2]
[366227075,1750138240879,-797.51,0.000164,2]
[366227076,1750138240888,-234.58992814,0.00016406,2]
[366227077,1750138240899,-485.99786868,0.00016406,2]
[366227078,1750138240908,-200.0,0.00016411,2]
[366227079,1750138240918,-417.52860388,0.00016414,2]
[366227080,1750138240929,-234.58992814,0.00016417,2]
[366227081,1750138240939,-610.1282041,0.00016417,2]
[366227082,1750138240949,-417.52860388,0.0001642,2]
[366227083,1750138240959,-485.99786868,0.0001642,2]
[366227084,1750138240969,-8232.57707045,0.00016423,2]
[366227085,1750138240979,-2637.96252156,0.00016423,2]
[366227086,1750138240989,-200.0,0.00016425,2]
[366227087,1750138240999,-200.0,0.00016427,2]
[366227088,1750138241009,-4816.55511741,0.00016427,2]
[366227089,1750138241019,-4816.55511741,0.00016428,2]
[366227090,1750138241029,-200.0,0.00016431,2]
[366227091,1750138241039,-1453.0985,0.00016431,2]
[366227092,1750138241049,-417.52860388,0.00016432,2]
[366227093,1750138241060,-4816.55511741,0.00016433,2]
[366227094,1750138241071,-2637.96252156,0.00016435,2]
[366227095,1750138241084,-2637.96252156,0.00016437,2]
[366227096,1750138241094,-485.99786868,0.00016437,2]
[366227097,1750138241105,-153.4,0.00016438,2]
[366227098,1750138241115,-4816.55511741,0.00016439,2]
[366227099,1750138241125,-200.0,0.00016441,2]
[366227100,1750138241138,-417.52860388,0.00016441,2]
[366227101,1750138241149,-485.99786868,0.00016444,2]
[366227102,1750138241234,-4816.55511741,0.00016448,2]
[366227103,1750138241245,-200.0,0.00016449,2]
[366227104,1750138241255,-200.0,0.00016449,2]
[366227105,1750138241266,-610.1282041,0.00016452,2]
[366227106,1750138241276,-200.0,0.00016454,2]
[366227107,1750138241286,-4816.55511741,0.00016454,2]
[366227108,1750138241296,-200.0,0.00016455,2]
[366227109,1750138241306,-923.86963395,0.00016456,2]
[366227110,1750138241316,-200.0,0.00016457,2]
[366227111,1750138241326,-200.0,0.00016457,2]
[366227112,1750138241338,-485.99786868,0.00016459,2]
[366227113,1750138241348,-485.99786868,0.00016459,2]
[366227114,1750138241358,-2637.96252156,0.00016461,2]
[366227115,1750138241368,-2637.96252156,0.00016462,2]
[366227116,1750138241379,-485.99786868,0.00016463,2]
[366227117,1750138241389,-234.58992814,0.00016465,2]
[366227118,1750138241398,-234.58992814,0.00016468,2]
[366227119,1750138241408,-490.0,0.00016469,2]
[366227120,1750138241418,-516.74,0.00016469,2]
[366227121,1750138241427,-1829.51,0.00016469,2]
[366227122,1750138241437,-553.59,0.00016469,2]
[366227123,1750138241448,-980.31,0.00016469,2]
[366227124,1750138241460,-490.0,0.00016469,2]
[366227125,1750138241470,-373.94,0.00016469,2]
[366227126,1750138241480,-490.0,0.00016469,2]
[366227127,1750138241491,-490.0,0.00016469,2]
[366227128,1750138241500,-490.0,0.00016469,2]
[366227129,1750138241510,-168.79,0.00016469,2]
[366227130,1750138241520,-200.0,0.00016472,2]
[366227131,1750138241531,-417.52860388,0.00016475,2]
[366227132,1750138241541,-4816.55511741,0.00016475,2]
[366227133,1750138241552,-926.548825,0.00016475,2]
[366227134,1750138241562,-234.58992814,0.00016475,2]
[366227135,1750138241573,-200.0,0.00016476,2]
[366227136,1750138241583,-200.0,0.0001648,2]
[366227137,1750138241593,-417.52860388,0.00016481,2]
[366227138,1750138241603,-234.58992814,0.00016485,2]
[366227139,1750138241612,-610.1282041,0.00016486,2]
[366227140,1750138241622,-4816.55511741,0.00016489,2]
[366227141,1750138241632,-2637.96252156,0.00016491,2]
[366227142,1750138241642,-2637.96252156,0.00016493,2]
[366227143,1750138241652,-417.52860388,0.00016497,2]
[366227144,1750138241662,-234.58992814,0.000165,2]
[366227145,1750138241672,-150.0,0.00016503,2]
[366227146,1750138241682,-150.0,0.00016504,2]
[366227147,1750138241692,-8232.57707045,0.00016518,2]
[366227148,1750138241702,-610.1282041,0.00016521,2]
[366227149,1750138241712,-150.0,0.00016521,2]
[366227150,1750138241722,-150.0,0.00016527,2]
[366227151,1750138241732,-169.83945859,0.00016529,2]
[366227152,1750138241742,-150.0,0.00016531,2]
[366227153,1750138241752,-150.0,0.00016531,2]
[366227154,1750138241762,-201.0,0.00016539,4]
[366227155,1750138241772,-923.86963395,0.00016544,2]
[366227156,1750138241782,-150.0,0.00016551,2]
[366227157,1750138241791,-150.0,0.00016552,2]
[366227158,1750138241802,-170.95067891,0.00016555,2]
[366227159,1750138241811,-2138.2223,0.00016555,2]
[366227160,1750138241820,-610.1282041,0.00016555,2]
[366227161,1750138241830,-490.0,0.00016567,2]
[366227162,1750138241840,-490.0,0.00016567,2]
[366227163,1750138241852,-550.43,0.00016567,2]
[366227164,1750138241862,-510.31,0.00016567,2]
[366227165,1750138241872,-490.0,0.00016567,2]
[366227166,1750138241881,-671.79,0.00016567,2]
[366227167,1750138241894,-845.97,0.00016567,2]
[366227168,1750138241904,-2629.86,0.00016567,2]
[366227169,1750138241914,-495.13,0.00016567,2]
[366227170,1750138241923,-411.45,0.00016567,2]
[366227171,1750138241933,-490.0,0.00016567,2]
[366227172,1750138241943,-490.0,0.00016567,2]
[366227173,1750138241953,-490.0,0.00016567,2]
[366227174,1750138241965,-1200.24,0.00016567,2]
[366227175,1750138241975,-991.44,0.00016567,2]
[366227176,1750138241985,-1751.25,0.00016567,2]
[366227177,1750138241995,-730.79,0.00016567,2]
[366227178,1750138242005,-655.84,0.00016567,2]
[366227179,1750138242014,-2725.184,0.00016568,2]
[366227180,1750138242025,-158.12744075,0.00016569,2]
[366227181,1750138242034,-150.0,0.00016583,2]
[366227182,1750138242044,-150.0,0.00016585,2]
[366227183,1750138242054,-610.1282041,0.0001659,2]
[366227184,1750138242064,-312.75514783,0.00016595,2]
[366227185,1750138242073,-150.0,0.00016595,2]
[366227186,1750138242083,-1000.0,0.00016597,2]
[366227187,1750138242093,-490.0,0.00016599,2]
[366227188,1750138242103,-530.24,0.00016599,2]
[366227189,1750138242112,-490.0,0.00016599,2]
[366227190,1750138242122,-827.53,0.00016599,2]
[366227191,1750138242132,-553.66,0.00016599,2]
[366227192,1750138242142,-592.86,0.00016599,2]
[366227193,1750138242151,-1140.68,0.00016599,2]
[366227194,1750138242160,-1479.37,0.00016599,2]
[366227195,1750138242170,-490.0,0.00016599,2]
[366227196,1750138242179,-1130.92,0.00016599,2]
[366227197,1750138242189,-490.0,0.00016599,2]
[366227198,1750138242199,-490.0,0.00016599,2]
[366227199,1750138242209,-490.0,0.00016599,2]
[366227200,1750138242219,-902.88,0.00016599,2]
[366227201,1750138242228,-742.44,0.00016599,2]
[366227202,1750138242238,-868.39,0.00016599,2]
[366227203,1750138242247,-1278.54,0.00016599,2]
[366227204,1750138242257,-1505.48,0.00016599,2]
[366227205,1750138242267,-1280.76,0.00016599,2]
[366227206,1750138242276,-514.8,0.00016599,2]
[366227207,1750138242286,-239.88,0.00016599,2]
[366227208,1750138242295,-490.0,0.00016599,2]
[366227209,1750138242305,-490.0,0.00016599,2]
[366227210,1750138242315,-863.81,0.00016599,2]
[366227211,1750138242326,-490.0,0.00016599,2]
[366227212,1750138242336,-490.0,0.00016599,2]
[366227213,1750138242349,-490.0,0.00016599,2]
[366227214,1750138242359,-436.53531828,0.000166,2]
[366227215,1750138242368,-1000.0,0.000166,3]
[366227217,1750138242378,-528.0,0.000166,3]
[366227219,1750138242388,-1000.0,0.000166,2]
[366227220,1750138242397,-1000.0,0.000166,2]
[366227221,1750138242407,-1000.0,0.000166,2]
[366227222,1750138242416,-1000.0,0.000166,3]
[366227223,1750138242426,-1000.0,0.000166,2]
[366227224,1750138242435,-771.3,0.000166,2]
[366227225,1750138242449,-6250.93245093,0.000166,2]
[366227226,1750138242459,-169.91544626,0.000166,2]
[366227227,1750138242468,-151.34935013,0.000166,2]
[366227228,1750138242479,-9598.9135839,0.000166,2]
[366227229,1750138242489,-169.83945858,0.00016603,2]
[366227230,1750138242499,-8232.57707045,0.00016614,2]
[366227231,1750138242508,-397.3,0.00016614,2]
[366227232,1750138242518,-170.95067889,0.00016624,2]
[366227234,1750138242529,-152.725962,0.00016624,2]
[366227236,1750138242539,-151.0,0.00016624,2]
[366227237,1750138242549,-151.0,0.00016624,2]
[366227238,1750138242559,-151.0,0.00016624,2]
[366227239,1750138242568,-151.0,0.00016624,2]
[366227240,1750138242578,-151.0,0.00016624,2]
[366227241,1750138242588,-152.499745,0.00016624,2]
[366227242,1750138242597,-176.193247,0.00016624,2]
[366227243,1750138242607,-176.193247,0.00016624,2]
[366227244,1750138242618,-610.1282041,0.00016624,2]
[366227245,1750138242627,-151.0,0.00016629,2]
[366227246,1750138242637,-490.0,0.00016633,2]
[366227247,1750138242646,-1829.51,0.00016633,2]
[366227248,1750138242656,-980.31,0.00016633,2]
[366227249,1750138242666,-490.0,0.00016633,2]
[366227250,1750138242675,-468.66,0.00016633,2]
[366227251,1750138242685,-490.0,0.00016633,2]
[366227252,1750138242697,-379.172,0.00016633,2]
[366227253,1750138242707,-923.86963395,0.00016633,2]
[366227254,1750138242716,-150.0,0.00016643,2]
[366227255,1750138242726,-150.0,0.00016644,2]
[366227256,1750138242735,-150.0,0.00016651,2]
[366227257,1750138242745,-490.0,0.00016654,2]
[366227258,1750138242755,-490.0,0.00016654,2]
[366227259,1750138242764,-508.79,0.00016654,2]
[366227260,1750138242773,-490.0,0.00016654,2]
[366227261,1750138242782,-490.0,0.00016654,2]
[366227262,1750138242792,-490.0,0.00016654,2]
[366227263,1750138242802,-490.0,0.00016654,2]
[366227264,1750138242811,-490.0,0.00016654,2]
[366227265,1750138242822,-490.0,0.00016654,2]
[366227266,1750138242832,-490.0,0.00016654,2]
[366227267,1750138242842,-500.0,0.00016654,2]
[366227268,1750138242853,-490.0,0.00016654,2]
[366227269,1750138242863,-2029.49,0.00016654,2]
[366227270,1750138242872,-1262.551057,0.00016654,2]
[366227271,1750138242882,-490.0,0.00016654,2]
[366227272,1750138242891,-490.0,0.00016654,2]
[366227273,1750138242900,-2960.911556,0.00016654,2]
[366227274,1750138242910,-490.0,0.00016654,2]
[366227275,1750138242920,-1589.51,0.00016654,2]
[366227276,1750138242929,-826.03,0.00016654,2]
[366227277,1750138242938,-490.0,0.00016654,2]
[366227278,1750138242948,-328.97121459,0.00016655,2]
[366227279,1750138242958,-490.0,0.00016655,2]
[366227280,1750138242967,-490.0,0.00016655,2]
[366227281,1750138242977,-490.0,0.00016655,2]
[366227282,1750138242987,-490.0,0.00016655,2]
[366227283,1750138242997,-490.0,0.00016655,2]
[366227284,1750138243007,-490.0,0.00016655,2]
[366227285,1750138243016,-490.0,0.00016655,2]
[366227286,1750138243026,-490.0,0.00016655,2]
[366227288,1750138243035,-490.0,0.00016655,2]
[366227289,1750138243045,-490.0,0.00016655,2]
[366227290,1750138243055,-490.0,0.00016655,2]
[366227291,1750138243065,-490.0,0.00016655,2]
[366227292,1750138243074,-490.0,0.00016655,2]
[366227293,1750138243085,-490.0,0.00016655,2]
[366227294,1750138243094,-320.79248886,0.00016655,2]
[366227295,1750138243104,-490.0,0.00016655,2]
[366227296,1750138243114,-490.0,0.00016655,2]
[366227297,1750138243123,-490.0,0.00016655,2]
[366227298,1750138243132,-490.0,0.00016655,2]
[366227299,1750138243142,-490.0,0.00016655,2]
[366227300,1750138243151,-490.0,0.00016655,2]
[366227301,1750138243161,-490.0,0.00016655,2]
[366227302,1750138243170,-490.0,0.00016655,2]
[366227303,1750138243180,-490.0,0.00016655,2]
[366227304,1750138243189,-490.0,0.00016655,2]
[366227305,1750138243199,-490.0,0.00016655,2]
[366227306,1750138243208,-490.0,0.00016655,2]
[366227307,1750138243218,-490.0,0.00016655,2]
[366227308,1750138243228,-510.51,0.00016655,2]
[366227309,1750138243238,-591.20196307,0.00016655,2]
[366227310,1750138243248,-490.0,0.00016655,2]
[366227311,1750138243258,-519.36,0.00016655,2]
[366227312,1750138243268,-286.93,0.00016655,2]
[366227313,1750138243279,-490.0,0.00016655,2]
[366227314,1750138243288,-490.0,0.00016655,2]
[366227315,1750138243298,-490.0,0.00016655,2]
[366227316,1750138243307,-490.0,0.00016655,2]